bitfinex/quotes_SOLUSD_20260102
["timestamp","ask_amount","ask_price","bid_price","bid_amount"]
[1767360642844,0.71472706,128.61,128.57,8.9680577]
[1767360643050,0.71472706,128.61,128.58,8.49281797]
[1767360643253,0.71472706,128.61,128.58,7.77698151]
[1767360643461,16.92334112,128.62,128.59,0.71583646]
[1767360643649,0.71472706,128.61,128.59,0.71583646]
[1767360643964,0.71472706,128.61,128.58,8.49281797]
[1767360646871,16.92334112,128.62,128.57,0.71583646]
[1767360647963,16.92334112,128.62,128.59,0.71583646]
[1767360648176,14.91472706,128.62,128.59,0.71583646]
[1767360649749,14.91472706,128.62,128.59,8.49235341]
[1767360650854,14.91472706,128.62,128.59,0.71583646]
[1767360651050,0.71472706,128.6,128.57,8.49310018]
[1767360651271,0.71472706,128.6,128.58,0.71583646]
[1767360651565,0.71472706,128.61,128.58,0.71583646]
[1767360657271,2.72334112,128.61,128.58,0.71583646]
[1767360657844,2.67077205,128.61,128.58,0.71583646]
[1767360658049,0.66215799,128.6,128.58,0.71583646]
[1767360658652,0.66215799,128.6,128.57,8.45374734]
[1767360660272,0.66215799,128.61,128.58,0.67648362]
[1767360661070,0.66215799,128.61,128.58,8.45373384]
[1767360661372,0.66215799,128.62,128.59,0.67648362]
[1767360663973,0.66215799,128.61,128.58,8.45373384]
[1767360666080,0.66215799,128.62,128.59,0.67648362]
[1767360666782,0.66215799,128.61,128.59,0.67648362]
[1767360668486,2.67077205,128.61,128.58,8.45373384]
[1767360668881,0.66215799,128.61,128.58,8.45373384]
[1767360670587,0.66215799,128.61,128.58,0.67648362]
[1767360671888,0.66215799,128.61,128.58,8.4537326]
[1767360673374,0.66215799,128.61,128.58,0.67648362]
[1767360674472,0.66215799,128.61,128.58,8.45372276]
[1767360679687,16.20861406,128.62,128.58,7.77723914]
[1767360679890,54.9902334,128.64,128.6,0.67648362]
[1767360680074,69.85239139,128.64,128.6,0.67648362]
[1767360680268,2.67077205,128.63,128.6,0.67648362]
[1767360681273,2.00861406,128.63,128.6,0.67648362]
[1767360681590,2.67077205,128.62,128.6,0.67648362]
[1767360683786,2.00861406,128.62,128.58,7.77723914]
[1767360684095,2.67077205,128.61,128.57,8.45409725]
[1767360684881,2.00861406,128.6,128.56,7.77815421]
[1767360685087,0.66215799,128.58,128.55,0.67648362]
[1767360685285,0.66215799,128.58,128.52,23.94614671]
[1767360685286,2.67077205,128.58,128.54,8.45586283]
[1767360688504,0.70392211,128.57,128.54,8.45586283]
[1767360692822,3.84447771,128.57,128.54,0.67648362]
[1767360693028,0.70392211,128.56,128.54,0.67648362]
[1767360694131,21.97761528,128.58,128.53,7.78022021]
[1767360694132,3.1405556,128.55,128.53,7.78022021]
[1767360694339,3.84447771,128.56,128.53,8.43350735]
[1767360695225,0.70392211,128.56,128.53,8.43350735]
[1767360696125,0.70392211,128.56,128.53,0.65328714]
[1767360697631,0.70392211,128.56,128.53,8.43328132]
[1767360699142,3.84447771,128.56,128.53,8.43328132]
[1767360699322,0.70392211,128.55,128.52,8.43404447]
[1767360699526,3.84447771,128.55,128.52,8.43404447]
[1767360700538,0.70392211,128.55,128.52,8.43404447]
[1767360701633,0.70392211,128.55,128.52,7.78075733]
[1767360701823,74.43225815,128.59,128.54,0.65328714]
[1767360701824,14.2,128.58,128.54,0.65328714]
[1767360702220,14.2,128.58,128.54,3.1405556]
[1767360702441,80.81160799,128.59,128.55,0.65328714]
[1767360702821,0.70392211,128.58,128.55,0.65328714]
[1767360704839,0.70392211,128.55,128.52,0.65328714]
[1767360705035,3.1405556,128.53,128.5,0.65328714]
[1767360705228,3.1405556,128.53,128.51,0.65328714]
[1767360710845,3.1405556,128.53,128.5,7.78200778]
[1767360711148,3.84447771,128.53,128.5,8.43529492]
[1767360711645,3.84447771,128.53,128.5,0.65328714]
[1767360713141,3.84447771,128.53,128.5,8.43536877]
[1767360713345,3.1405556,128.53,128.51,0.65328714]
[1767360714347,25.82459044,128.54,128.51,0.65328714]
[1767360714727,18.04447771,128.54,128.51,0.65328714]
[1767360715129,3.84447771,128.54,128.51,0.65328714]
[1767360715330,18.04447771,128.54,128.51,0.65328714]
[1767360715536,14.2,128.54,128.52,0.65328714]
[1767360715848,14.90392211,128.54,128.51,0.65328714]
[1767360716042,14.90392211,128.54,128.51,8.43473563]
[1767360723355,14.90392211,128.54,128.51,0.65328714]
[1767360723531,18.04447771,128.54,128.51,0.65328714]
[1767360724137,18.04447771,128.54,128.51,8.43476422]
[1767360726553,54.9902334,128.55,128.53,0.70782908]
[1767360726852,80.81048468,128.58,128.54,0.70782908]
[1767360727153,66.61048468,128.58,128.54,0.70782908]
[1767360727358,80.81048468,128.58,128.54,0.70782908]
[1767360727559,0.70211137,128.57,128.54,0.70782908]
[1767360728160,69.1902334,128.58,128.55,0.70782908]
[1767360728654,54.9902334,128.58,128.56,0.70782908]
[1767360728860,58.83290037,128.58,128.55,0.70782908]
[1767360729557,3.84266697,128.56,128.52,8.48817528]
[1767360729762,3.84266697,128.56,128.53,0.70782908]
[1767360730659,3.84266697,128.56,128.47,6.49368184]
[1767360730660,0.70211137,128.53,128.47,0.97839184]
[1767360730839,35.57092772,128.58,128.47,0.2]
[1767360730840,3.1405556,128.48,128.47,0.2]
[1767360731339,3.1405556,128.47,128.46,0.90782908]
[1767360731543,3.1405556,128.47,128.46,0.2]
[1767360732152,14.90211137,128.5,128.46,0.2]
[1767360732549,3.1405556,128.49,128.46,0.90782908]
[1767360733463,14.90211137,128.5,128.46,8.69228935]
[1767360733649,18.04266697,128.5,128.46,7.98446027]
[1767360733852,18.04266697,128.5,128.47,0.70782908]
[1767360734855,0.525,128.47,128.45,0.2]
[1767360735056,17.6655556,128.46,128.44,0.2]
[1767360735340,3.1405556,128.45,128.42,0.70782908]
[1767360735539,17.3405556,128.45,128.42,0.70782908]
[1767360737159,7.78356394,128.48,128.43,0.70782908]
[1767360737357,17.3605556,128.47,128.44,0.70782908]
[1767360738244,7.7814956,128.51,128.45,0.70782908]
[1767360738445,3.4655556,128.49,128.45,0.70782908]
[1767360739264,25.46727937,128.51,128.47,3.84838468]
[1767360739671,11.24727937,128.51,128.47,0.70782908]
[1767360739967,25.46727937,128.51,128.47,0.70782908]
[1767360740369,17.6855556,128.51,128.47,0.70782908]
[1767360740673,3.1405556,128.5,128.47,0.70782908]
[1767360743859,3.4655556,128.5,128.47,0.70782908]
[1767360744056,3.4655556,128.5,128.46,0.70782908]
[1767360744367,14.22,128.51,128.46,3.1405556]
[1767360744555,14.22,128.51,128.48,0.70782908]
[1767360745956,3.4655556,128.52,128.48,0.70782908]
[1767360746160,3.4655556,128.52,128.48,8.49098524]
[1767360748575,3.4655556,128.52,128.49,0.65283025]
[1767360749363,11.24648638,128.52,128.49,0.65283025]
[1767360749567,8.10593078,128.52,128.48,0.65283025]
[1767360749770,3.1405556,128.51,128.48,0.65283025]
[1767360752481,2.33717243,128.51,128.48,0.65283025]
[1767360753878,2.33717243,128.51,128.46,21.47301216]
[1767360753879,2.01217243,128.5,128.46,0.65283025]
[1767360754085,2.01217243,128.49,128.46,0.65283025]
[1767360754379,2.01217243,128.48,128.45,0.65283025]
[1767360754769,5.78725895,128.47,128.45,0.65283025]
[1767360754955,2.01217243,128.48,128.45,0.65283025]
[1767360755161,5.78726055,128.47,128.45,0.65283025]
[1767360755364,2.01217243,128.48,128.45,0.65283025]
[1767360755568,5.78655726,128.47,128.45,8.4379463]
[1767360755768,2.01217243,128.48,128.45,8.4379463]
[1767360755966,5.78703863,128.47,128.45,8.4379463]
[1767360756154,2.01217243,128.48,128.45,8.4379463]
[1767360756359,5.78628065,128.47,128.45,8.4379463]
[1767360756554,2.01217243,128.48,128.45,8.4379463]
[1767360756775,5.78661565,128.47,128.45,8.4379463]
[1767360756982,2.01217243,128.48,128.45,8.4379463]
[1767360757178,5.78662055,128.47,128.45,8.4379463]
[1767360757471,2.01217243,128.48,128.45,8.4379463]
[1767360757674,5.78653431,128.47,128.45,8.4379463]
[1767360757870,2.01217243,128.49,128.46,0.65283025]
[1767360758186,5.78614197,128.48,128.47,0.65283025]
[1767360758565,2.01217243,128.51,128.47,0.65283025]
[1767360758765,5.78667419,128.5,128.47,0.65283025]
[1767360758961,2.01217243,128.51,128.47,0.65283025]
[1767360759167,2.01217243,128.51,128.48,0.65283025]
[1767360759168,5.78694879,128.5,128.48,0.65283025]
[1767360759384,2.01217243,128.51,128.48,0.65283025]
[1767360759684,5.78712644,128.5,128.48,0.65283025]
[1767360759982,2.01217243,128.51,128.48,0.65283025]
[1767360760160,5.78712644,128.5,128.48,0.65283025]
[1767360760358,76.99142948,128.52,128.48,0.65283025]
[1767360760563,7.79951017,128.51,128.48,8.43611771]
[1767360760783,5.78733774,128.5,128.48,8.43611771]
[1767360761283,5.78733774,128.5,128.49,0.65283025]
[1767360765596,2.01217243,128.51,128.49,0.65283025]
[1767360766387,79.00360191,128.52,128.49,0.65283025]
[1767360766584,5.78953471,128.51,128.49,0.65283025]
[1767360766886,79.00360191,128.52,128.49,0.65283025]
[1767360767093,5.7895361,128.51,128.49,0.65283025]
[1767360767300,5.79034155,128.5,128.47,0.65283025]
[1767360767477,2.01217243,128.51,128.47,0.65283025]
[1767360767798,5.79007668,128.5,128.47,0.65283025]
[1767360767971,2.01217243,128.51,128.47,0.65283025]
[1767360768165,7.80250953,128.5,128.47,0.65283025]
[1767360768365,2.01217243,128.5,128.47,0.65283025]
[1767360768561,2.01217243,128.5,128.46,7.78421776]
[1767360768562,7.80292919,128.49,128.46,0.65283025]
[1767360768766,7.80192511,128.48,128.46,0.65283025]
[1767360768967,2.01217243,128.48,128.46,0.65283025]
[1767360774272,5.80400364,128.47,128.46,0.65283025]
[1767360775276,5.80400364,128.47,128.44,7.78543954]
[1767360775277,5.80400364,128.47,128.45,0.65283025]
[1767360775477,5.80400364,128.46,128.45,0.65283025]
[1767360775787,2.01217243,128.48,128.45,0.65283025]
[1767360775989,2.01217243,128.47,128.44,0.69994227]
[1767360776293,7.78342765,128.48,128.43,0.69994227]
[1767360776294,2.01217243,128.46,128.43,0.69994227]
[1767360776680,0.65514832,128.45,128.34,0.2]
[1767360776885,2.01217243,128.42,128.37,2.01217243]
[1767360777086,16.88732075,128.43,128.38,2.01217243]
[1767360777398,10.453928,128.43,128.38,2.01217243]
[1767360777784,2.66732075,128.43,128.38,9.80150915]
[1767360778300,10.45375973,128.43,128.38,9.80150915]
[1767360778680,10.45375973,128.43,128.39,0.69994227]
[1767360778999,2.01217243,128.42,128.39,0.69994227]
[1767360780406,16.23217243,128.44,128.4,0.69994227]
[1767360780705,14.22,128.44,128.4,0.69994227]
[1767360781293,7.78417284,128.47,128.41,2.7121147]
[1767360781497,9.79621938,128.47,128.43,0.69994227]
[1767360781676,0.65514832,128.47,128.43,0.69994227]
[1767360781877,2.01217243,128.47,128.43,0.69994227]
[1767360782074,2.66732075,128.47,128.43,0.69994227]
[1767360783398,22.65877885,128.48,128.44,0.69994227]
[1767360783584,2.01217243,128.47,128.44,0.69994227]
[1767360783787,9.79461805,128.5,128.45,0.69994227]
[1767360783992,9.79461805,128.5,128.46,0.69994227]
[1767360784997,2.01217243,128.49,128.46,0.69994227]
[1767360785195,2.66732075,128.49,128.46,0.69994227]
[1767360785377,2.66732075,128.47,128.42,8.48654237]
[1767360785581,2.66732075,128.47,128.43,0.69994227]
[1767360786495,2.66732075,128.45,128.41,0.69994227]
[1767360787106,2.66732075,128.45,128.41,8.48702444]
[1767360787315,2.66732075,128.45,128.42,0.69994227]
[1767360787914,0.65514832,128.45,128.42,0.69994227]
[1767360791906,14.87514832,128.46,128.42,0.69994227]
[1767360792081,8.43785514,128.49,128.44,0.69994227]
[1767360792281,8.43785514,128.49,128.45,0.69994227]
[1767360792494,22.65785514,128.49,128.45,0.69994227]
[1767360792696,8.43785514,128.49,128.45,0.69994227]
[1767360792892,22.65785514,128.49,128.45,0.69994227]
[1767360794209,14.22,128.49,128.46,2.01217243]
[1767360794406,14.22,128.49,128.47,0.69994227]
[1767360794908,24.66918118,128.51,128.47,0.69994227]
[1767360795608,22.65700875,128.51,128.47,0.69994227]
[1767360796107,14.22,128.51,128.47,7.78376361]
[1767360796310,8.43565239,128.53,128.49,0.69994227]
[1767360796488,22.65565239,128.53,128.5,0.69994227]
[1767360797189,14.87514832,128.53,128.5,0.69994227]
[1767360797390,22.65546525,128.53,128.5,0.69994227]
[1767360798406,24.66763768,128.53,128.5,0.69994227]
[1767360799410,22.65546525,128.53,128.5,0.69994227]
[1767360799607,24.66763768,128.53,128.5,0.69994227]
[1767360803119,16.23217243,128.53,128.49,0.69994227]
[1767360803313,16.23217243,128.53,128.49,7.78261903]
[1767360803512,16.23217243,128.53,128.5,0.69994227]
[1767360805128,14.22,128.53,128.5,0.69994227]
[1767360805502,14.87514832,128.53,128.5,0.69994227]
[1767360805717,16.88732075,128.53,128.5,0.69994227]
[1767360808518,14.87514832,128.53,128.5,0.69994227]
[1767360809936,16.88732075,128.53,128.5,0.69994227]
[1767360810518,16.88732075,128.53,128.45,0.77851304]
[1767360810519,2.01217243,128.51,128.45,0.77851304]
[1767360810721,2.01217243,128.49,128.46,8.46036146]
[1767360811094,2.01217243,128.49,128.47,0.67619645]
[1767360814527,3.14468087,128.49,128.47,0.67619645]
[1767360817923,3.14468087,128.49,128.46,7.78416501]
[1767360818225,3.14468087,128.49,128.45,8.46098251]
[1767360818226,3.14468087,128.48,128.45,8.46098251]
[1767360819224,3.14468087,128.48,128.46,0.67619645]
[1767360829533,3.14468087,128.48,128.46,8.46061774]
[1767360829731,18.06462314,128.49,128.46,8.46061774]
[1767360830334,18.06462314,128.49,128.46,0.67619645]
[1767360835148,3.14468087,128.48,128.46,0.67619645]
[1767360835626,3.14468087,128.48,128.45,7.78480705]
[1767360835627,3.84462314,128.47,128.44,8.46172313]
[1767360835828,3.14468087,128.47,128.45,0.67619645]
[1767360836336,3.14468087,128.48,128.46,0.69505216]
[1767360836532,0.6984752,128.48,128.46,0.69505216]
[1767360837723,25.84587656,128.49,128.46,0.69505216]
[1767360838828,17.36468087,128.49,128.46,0.69505216]
[1767360841759,14.22,128.49,128.46,0.69505216]
[1767360841946,17.36468087,128.49,128.46,0.69505216]
[1767360846235,18.06315607,128.49,128.46,0.69505216]
[1767360854264,3.84315607,128.49,128.46,0.69505216]
[1767360855167,5.25453924,128.48,128.46,0.19505216]
[1767360855366,3.84315607,128.49,128.46,0.19505216]
[1767360856374,11.62614179,128.49,128.46,0.19505216]
[1767360857869,3.84315607,128.49,128.46,0.19505216]
[1767360861476,5.841365,128.48,128.46,0.19505216]
[1767360861770,7.78236286,128.5,128.46,0.19505216]
[1767360862079,0.6984752,128.55,128.5,0.69505216]
[1767360862367,0.6984752,128.53,128.49,0.69505216]
[1767360862575,3.84315607,128.53,128.49,0.69505216]
[1767360862759,0.6984752,128.53,128.49,0.69505216]
[1767360863152,3.84315607,128.53,128.49,0.69505216]
[1767360863353,3.84315607,128.53,128.5,0.69505216]
[1767360867764,0.69901414,128.52,128.49,0.67009722]
[1767360867972,3.84369501,128.52,128.49,0.67009722]
[1767360869678,0.69901414,128.49,128.45,8.45498025]
[1767360869871,3.84369501,128.49,128.46,8.45455873]
[1767360870373,3.84369501,128.49,128.46,0.67009722]
[1767360872559,0.69901414,128.49,128.46,0.67009722]
[1767360872784,3.84369501,128.49,128.46,0.67009722]
[1767360873378,0.69901414,128.48,128.45,0.67009722]
[1767360877286,0.69901414,128.48,128.45,8.45478868]
[1767360885672,0.69901414,128.48,128.45,7.78469146]
[1767360886000,2.71183383,128.48,128.45,8.45478868]
[1767360886300,2.01281969,128.48,128.45,8.45478868]
[1767360886473,2.71183383,128.48,128.45,8.45478868]
[1767360887691,2.01281969,128.48,128.45,8.45478868]
[1767360887890,0.69901414,128.47,128.45,8.45478868]
[1767360888193,2.71183383,128.48,128.45,8.45478868]
[1767360891906,2.01281969,128.48,128.45,8.45478868]
[1767360892206,0.69901414,128.47,128.45,8.45478868]
[1767360893594,2.01281969,128.49,128.45,8.45478868]
[1767360893802,0.69901414,128.48,128.45,8.45478868]
[1767360895002,0.69901414,128.48,128.45,10.46760837]
[1767360895204,0.69901414,128.48,128.45,9.79751115]
[1767360895413,0.69901414,128.48,128.45,10.46760837]
[1767360899003,0.69901414,128.48,128.45,8.45478868]
[1767360903706,0.69901414,128.48,128.45,0.67009722]
[1767360903891,0.69901414,128.48,128.45,8.45518479]
[1767360908006,0.69238635,128.52,128.48,0.6716375]
[1767360908206,0.69238635,128.54,128.51,0.6716375]
[1767360908520,0.69238635,128.54,128.51,0.6412511]
[1767360908895,0.69238635,128.54,128.5,2.01281969]
[1767360909314,0.69238635,128.54,128.5,9.79470451]
[1767360911014,0.69238635,128.54,128.5,10.46634201]
[1767360911311,2.01281969,128.54,128.5,10.46634201]
[1767360911520,0.69238635,128.53,128.5,10.46634201]
[1767360912591,2.70520604,128.53,128.5,0.6716375]
[1767360912914,0.69238635,128.52,128.5,0.6716375]
[1767360914111,0.69238635,128.52,128.49,0.6716375]
[1767360914310,2.70520604,128.52,128.49,0.6716375]
[1767360914524,0.69238635,128.52,128.49,0.6716375]
[1767360915626,0.69238635,128.49,128.45,0.6716375]
[1767360915919,2.70520604,128.48,128.45,0.6716375]
[1767360916123,0.69238635,128.48,128.45,0.6716375]
[1767360917328,0.69238635,128.48,128.46,0.6716375]
[1767360923023,0.69238635,128.48,128.45,2.68445719]
[1767360923414,0.69238635,128.48,128.45,0.6716375]
[1767360924423,0.69238635,128.48,128.45,8.45673188]
[1767360925524,9.48799072,128.49,128.45,8.45673188]
[1767360927621,0.56848468,128.48,128.45,8.45673188]
[1767360932030,2.58130437,128.48,128.45,8.45673188]
[1767360933229,0.56848468,128.48,128.45,8.45673188]
[1767360933834,2.58130437,128.48,128.45,8.45673188]
[1767360936029,16.80130437,128.48,128.45,8.45673188]
[1767360936226,24.58464857,128.48,128.45,0.6716375]
[1767360936605,0.56848468,128.47,128.44,7.78568295]
[1767360936806,0.56848468,128.47,128.44,8.4605053]
[1767360938020,0.56848468,128.47,128.43,7.78634275]
[1767360938323,17.93420096,128.48,128.44,0.67482235]
[1767360940609,17.36571628,128.48,128.44,8.46043818]
[1767360940811,17.93420096,128.48,128.45,0.67482235]
[1767360941125,14.78848468,128.48,128.45,0.67482235]
[1767360941830,0.56848468,128.48,128.45,0.67482235]
[1767360942019,14.78848468,128.48,128.45,0.67482235]
[1767360944130,3.14571628,128.47,128.4,29.70921503]
[1767360944334,3.71420096,128.45,128.41,0.67482235]
[1767360944532,14.78848468,128.45,128.41,0.67482235]
[1767360944734,14.22,128.45,128.44,0.67482235]
[1767360945234,14.22,128.46,128.44,0.67482235]
[1767360945438,14.78848468,128.46,128.44,0.67482235]
[1767360946331,14.78848468,128.46,128.43,8.46114675]
[1767360949037,0.56848468,128.46,128.43,8.46114675]
[1767360949235,14.78848468,128.46,128.43,8.46114675]
[1767360955334,17.93420096,128.46,128.43,8.46114675]
[1767360956526,0.56848468,128.5,128.44,0.71830325]
[1767360956726,17.93420096,128.49,128.44,0.71830325]
[1767360956936,0.56848468,128.48,128.44,0.71830325]
[1767360958053,3.71420096,128.48,128.44,0.71830325]
[1767360958550,3.71420096,128.48,128.45,0.71830325]
[1767360960459,0.56848468,128.48,128.45,0.71830325]
[1767360960651,3.71420096,128.48,128.45,0.71830325]
[1767360961154,11.49756268,128.48,128.45,0.71830325]
[1767360961327,3.14571628,128.47,128.45,0.71830325]
[1767360963358,3.71420096,128.46,128.43,8.50435107]
[1767360963943,3.71420096,128.46,128.44,0.71830325]
[1767360964677,14.22,128.46,128.44,0.71830325]
[1767360967271,17.36571628,128.46,128.43,0.71830325]
[1767360967568,0.56848468,128.45,128.43,0.71830325]
[1767360967972,17.93420096,128.46,128.43,0.71830325]
[1767360971450,14.78848468,128.46,128.43,0.71830325]
[1767360971649,17.93420096,128.46,128.43,0.71830325]
[1767360975692,14.22,128.46,128.43,0.71830325]
[1767360976886,17.36571628,128.46,128.43,0.71830325]
[1767360977093,0.56848468,128.45,128.43,0.71830325]
[1767360978673,17.93420096,128.46,128.43,0.71830325]
[1767360979498,14.78848468,128.46,128.43,7.78632616]
[1767360979698,14.78848468,128.46,128.43,8.50462941]
[1767360981964,17.93420096,128.46,128.43,8.50462941]
[1767360982370,25.71875433,128.46,128.43,0.71830325]
[1767360985792,17.93420096,128.46,128.43,0.71830325]
[1767360985997,14.22,128.46,128.44,0.72300226]
[1767360986601,14.78848468,128.46,128.44,0.72300226]
[1767360989084,0.56848468,128.44,128.4,8.51113119]
[1767360989283,17.93420096,128.43,128.4,8.51113119]
[1767360989505,17.93420096,128.43,128.4,0.72300226]
[1767360990991,17.93420096,128.43,128.4,8.51114344]
[1767360993914,17.93420096,128.43,128.4,0.72300226]
[1767360995420,14.78848468,128.43,128.4,0.72300226]
[1767360995604,17.93420096,128.43,128.4,0.72300226]
[1767360996609,16.80310663,128.43,128.4,0.72300226]
[1767360998102,0.56848468,128.42,128.4,0.72300226]
[1767360998415,16.23462195,128.43,128.4,0.72300226]
[1767360998609,16.80310663,128.43,128.4,0.72300226]
[1767361004014,14.78848468,128.43,128.4,0.72300226]
[1767361004216,16.80310663,128.43,128.4,0.72300226]
[1767361006931,14.78848468,128.43,128.4,0.72300226]
[1767361007136,16.80310663,128.43,128.4,0.72300226]
[1767361009233,14.78848468,128.43,128.4,0.72300226]
[1767361009425,14.22,128.44,128.41,2.01462195]
[1767361009735,0.56848468,128.46,128.42,0.72300226]
[1767361009923,14.22,128.45,128.42,0.72300226]
[1767361010616,2.58310663,128.46,128.42,0.72300226]
[1767361010819,16.80310663,128.46,128.43,0.72300226]
[1767361016433,14.22,128.46,128.43,0.72300226]
[1767361017939,14.78848468,128.46,128.43,0.72300226]
[1767361020434,16.80310663,128.46,128.43,0.72300226]
[1767361020946,2.01462195,128.44,128.41,8.47715263]
[1767361021127,2.01462195,128.44,128.42,0.68975271]
[1767361021535,16.23462195,128.44,128.42,0.68975271]
[1767361022350,16.23462195,128.44,128.39,2.01462195]
[1767361022549,2.58310663,128.43,128.4,0.68975271]
[1767361023733,16.80310663,128.43,128.4,0.68975271]
[1767361026367,7.78514224,128.45,128.4,7.78780827]
[1767361026655,14.22,128.44,128.42,0.68975271]
[1767361026856,14.22,128.45,128.42,0.68975271]
[1767361029157,16.23462195,128.45,128.42,0.68975271]
[1767361029581,2.01462195,128.44,128.42,0.68975271]
[1767361030848,2.01462195,128.43,128.39,8.478133]
[1767361031037,2.01462195,128.42,128.4,0.68975271]
[1767361036965,2.58310663,128.42,128.39,0.68975271]
[1767361045573,14.22,128.43,128.39,7.78866492]
[1767361045812,14.22,128.43,128.4,0.68975271]
[1767361045813,14.78848468,128.43,128.4,0.68975271]
[1767361045963,16.80310663,128.43,128.4,0.68975271]
[1767361046271,16.77310663,128.43,128.4,0.68975271]
[1767361046970,16.80310663,128.43,128.4,0.68975271]
[1767361047164,2.58310663,128.43,128.4,0.68975271]
[1767361047370,16.80310663,128.43,128.4,0.68975271]
[1767361047552,2.58310663,128.43,128.4,0.68975271]
[1767361047751,16.80310663,128.43,128.4,0.68975271]
[1767361047965,14.78848468,128.43,128.4,0.68975271]
[1767361048277,2.68870091,128.46,128.41,0.6533916]
[1767361048456,2.01462195,128.45,128.42,0.6533916]
[1767361048775,2.68870091,128.45,128.42,0.6533916]
[1767361049266,2.01462195,128.44,128.42,0.6533916]
[1767361056494,3.14698206,128.44,128.42,0.6533916]
[1767361059901,3.82106102,128.44,128.42,0.6533916]
[1767361064723,3.82106102,128.43,128.4,0.6533916]
[1767361064901,3.14698206,128.42,128.4,0.6533916]
[1767361068221,3.82106102,128.45,128.41,0.6533916]
[1767361069219,3.82106102,128.45,128.42,0.6533916]
[1767361073325,3.82106102,128.45,128.42,7.78684479]
[1767361073530,3.14698206,128.45,128.43,0.66934842]
[1767361074211,3.85669634,128.45,128.43,0.66934842]
[1767361074925,14.92971428,128.46,128.43,0.66934842]
[1767361075129,3.14698206,128.45,128.43,0.66934842]
[1767361075924,3.84616914,128.45,128.43,0.66934842]
[1767361079313,22.00455821,128.46,128.4,22.61738704]
[1767361079314,10.93271859,128.44,128.4,0.66652577]
[1767361079517,3.14698206,128.42,128.4,0.66652577]
[1767361082244,3.84616914,128.42,128.4,0.66652577]
[1767361083256,3.14698206,128.41,128.39,0.66652577]
[1767361085020,3.84616914,128.41,128.37,22.00971296]
[1767361085323,3.84616914,128.41,128.38,0.66652577]
[1767361086245,3.84616914,128.41,128.38,8.45586696]
[1767361086438,3.84616914,128.41,128.38,0.66652577]
[1767361088137,3.14698206,128.41,128.38,0.66652577]
[1767361088344,0.66918708,128.4,128.38,0.66652577]
[1767361088744,3.14698206,128.41,128.38,0.66652577]
[1767361088946,3.14698206,128.4,128.38,0.66652577]
[1767361092146,3.84616914,128.41,128.38,0.66652577]
[1767361094346,3.84616914,128.41,128.38,8.45585946]
[1767361096032,0.69918708,128.4,128.37,7.78968764]
[1767361096237,3.14698206,128.41,128.36,19.57612473]
[1767361096238,3.84616914,128.39,128.36,8.55692596]
[1767361096433,3.84616914,128.39,128.36,0.76652577]
[1767361098329,3.84616914,128.38,128.36,0.1]
[1767361098535,3.14698206,128.37,128.36,0.1]
[1767361098939,3.84616914,128.38,128.36,0.1]
[1767361100654,3.14698206,128.37,128.36,0.1]
[1767361101252,3.84616914,128.38,128.36,0.1]
[1767361103453,0.69918708,128.37,128.34,7.99151317]
[1767361103632,3.84616914,128.37,128.34,8.65803894]
[1767361104551,3.84616914,128.37,128.34,0.86652577]
[1767361104759,3.84616914,128.36,128.34,0.2]
[1767361105332,3.84616914,128.36,128.34,0.86652577]
[1767361105833,0.69918708,128.37,128.34,0.86652577]
[1767361106038,3.14698206,128.36,128.34,0.86652577]
[1767361106935,3.81830506,128.36,128.34,0.86652577]
[1767361107131,0.671323,128.36,128.34,0.86652577]
[1767361107455,3.81830506,128.36,128.34,0.86652577]
[1767361107837,3.81830506,128.36,128.34,0.2]
[1767361108752,3.81830506,128.35,128.34,0.2]
[1767361109954,0.671323,128.34,128.33,0.1]
[1767361110260,3.81830506,128.34,128.33,0.1]
[1767361111649,3.81830506,128.34,128.32,0.88068548]
[1767361114935,3.81830506,128.34,128.32,0.2]
[1767361116264,0.671323,128.33,128.32,0.2]
[1767361116645,3.14698206,128.34,128.32,0.2]
[1767361117549,3.81830506,128.34,128.32,0.2]
[1767361117744,3.81830506,128.34,128.32,0.88068548]
[1767361118561,2.68870851,128.34,128.32,0.88068548]
[1767361119068,0.671323,128.34,128.32,0.88068548]
[1767361119245,2.68870851,128.34,128.32,0.88068548]
[1767361122966,0.671323,128.32,128.31,0.1]
[1767361123169,2.68870851,128.32,128.31,0.1]
[1767361123875,2.68870851,128.32,128.3,20.18110374]
[1767361124452,0.671323,128.33,128.3,20.18110374]
[1767361124648,14.22,128.31,128.3,20.18110374]
[1767361125471,14.22,128.31,128.3,27.97533575]
[1767361128389,2.01738551,128.34,128.31,0.68068548]
[1767361128577,14.22,128.33,128.31,0.68068548]
[1767361129156,0.671323,128.37,128.31,0.68068548]
[1767361129352,14.24,128.36,128.33,0.68068548]
[1767361130368,14.24,128.36,128.33,7.79236628]
[1767361130561,14.24,128.36,128.34,0.68068548]
[1767361134982,14.24,128.36,128.33,7.79236628]
[1767361135278,14.911323,128.36,128.33,8.47305176]
[1767361135478,16.92870851,128.36,128.33,8.47305176]
[1767361135785,16.92870851,128.36,128.33,0.68068548]
[1767361137075,16.92870851,128.36,128.33,8.47309298]
[1767361141176,14.911323,128.36,128.33,8.47309298]